bitfinex/quotes_BTCUSD_20241107
["timestamp","ask_amount","ask_price","bid_price","bid_amount"]
[1730940587568,0.12481188,75151.0,75150.0,0.0799]
[1730940587775,0.2570529,75151.0,75150.0,0.0799]
[1730940588286,1.7570529,75151.0,75150.0,0.0799]
[1730940588507,0.2570529,75151.0,75150.0,0.0799]
[1730940589119,0.13224102,75151.0,75150.0,0.0799]
[1730940594132,1.63224102,75151.0,75150.0,0.0799]
[1730940595933,0.13224102,75151.0,75150.0,0.0799]
[1730940599081,0.13224102,75151.0,75150.0,0.080734]
[1730940599929,1.63224102,75151.0,75150.0,0.080734]
[1730940601223,0.13224102,75151.0,75150.0,0.080734]
[1730940604223,0.03931244,75155.0,75150.0,0.082734]
[1730940604443,0.03931244,75155.0,75150.0,0.080734]
[1730940604444,0.17322874,75154.0,75150.0,0.080734]
[1730940604675,0.13224102,75154.0,75150.0,0.080734]
[1730940604877,0.04098894,75153.0,75150.0,0.080734]
[1730940606561,0.13224102,75154.0,75150.0,0.082734]
[1730940606772,0.13224102,75154.0,75151.0,0.00415675]
[1730940606980,0.13224102,75154.0,75152.0,0.00415675]
[1730940607221,0.05501336,75157.0,75154.0,0.0803]
[1730940607435,0.5,75164.0,75155.0,0.00415675]
[1730940607436,0.13224102,75156.0,75155.0,0.00415675]
[1730940607649,0.13224102,75156.0,75155.0,0.08445675]
[1730940609736,0.13224102,75156.0,75155.0,0.0803]
[1730940611028,0.13224102,75156.0,75155.0,0.08445646]
[1730940611239,0.13224102,75156.0,75155.0,0.0803]
[1730940612112,0.13224102,75156.0,75155.0,0.08445654]
[1730940612322,0.13224102,75156.0,75155.0,0.0803]
[1730940612521,0.13224102,75156.0,75155.0,0.08445661]
[1730940612745,0.13224102,75156.0,75155.0,0.0803]
[1730940613403,0.023,75155.0,75150.0,0.000834]
[1730940613604,0.12481188,75151.0,75150.0,0.000834]
[1730940613855,0.2570529,75151.0,75150.0,0.00499088]
[1730940614276,0.2570529,75151.0,75150.0,0.000834]
[1730940614700,0.3029755,75151.0,75150.0,0.000834]
[1730940615318,0.29809303,75151.0,75150.0,0.000834]
[1730940615943,1.79809303,75151.0,75150.0,0.000834]
[1730940616355,1.85715189,75151.0,75150.0,0.000834]
[1730940617194,1.79809303,75151.0,75150.0,0.000834]
[1730940617404,2.00785788,75151.0,75150.0,0.000834]
[1730940617826,1.92911273,75151.0,75150.0,0.000834]
[1730940618686,0.42911273,75151.0,75150.0,0.000834]
[1730940619129,0.48429501,75151.0,75150.0,0.000834]
[1730940620414,0.48454273,75151.0,75150.0,0.000834]
[1730940622455,0.56328788,75151.0,75150.0,0.000834]
[1730940622673,0.48454273,75151.0,75150.0,0.000834]
[1730940627521,0.44003483,75151.0,75150.0,0.000834]
[1730940627945,0.43981435,75151.0,75150.0,0.000834]
[1730940628375,0.51864244,75151.0,75150.0,0.000834]
[1730940629904,0.03943035,75151.0,75150.0,0.12739079]
[1730940630116,0.015,75152.0,75151.0,0.0752]
[1730940630332,0.015,75152.0,75151.0,0.13855679]
[1730940630551,0.015,75152.0,75151.0,0.15020705]
[1730940631001,0.015,75152.0,75151.0,0.15851911]
[1730940631678,0.00199649,75157.0,75156.0,0.1384]
[1730940631899,0.00199649,75157.0,75156.0,0.14920705]
[1730940632119,0.00199649,75157.0,75156.0,0.15751819]
[1730940632329,0.00199649,75157.0,75156.0,0.14920705]
[1730940632566,0.00199649,75157.0,75156.0,0.15751816]
[1730940632778,0.00199649,75157.0,75156.0,0.14920705]
[1730940633237,0.00199649,75157.0,75156.0,0.15186777]
[1730940633502,0.00199649,75157.0,75156.0,0.14920705]
[1730940633730,0.00199649,75157.0,75156.0,0.15751809]
[1730940634375,0.00199649,75157.0,75156.0,0.14920705]
[1730940634583,0.00199649,75157.0,75156.0,0.15186765]
[1730940634801,0.00199649,75157.0,75156.0,0.16517869]
[1730940635021,0.0009803,75166.0,75165.0,0.017]
[1730940635230,0.0009803,75166.0,75165.0,0.14495026]
[1730940635447,0.001668,75168.0,75165.0,0.14495026]
[1730940635448,0.001668,75168.0,75167.0,0.002]
[1730940635658,0.001668,75168.0,75167.0,0.14245679]
[1730940636095,0.001668,75168.0,75167.0,0.14910498]
[1730940636304,0.001668,75168.0,75167.0,0.15176528]
[1730940636517,0.001668,75168.0,75167.0,0.15176515]
[1730940637182,0.001668,75176.0,75175.0,0.1419]
[1730940637402,0.001668,75176.0,75175.0,0.14605679]
[1730940637878,0.001668,75176.0,75175.0,0.14405679]
[1730940638320,0.001668,75176.0,75175.0,0.1249]
[1730940638526,0.13390902,75176.0,75175.0,0.0762]
[1730940638991,0.13390902,75176.0,75175.0,0.0812]
[1730940639206,0.13390902,75176.0,75175.0,0.0762]
[1730940639845,0.13390902,75176.0,75175.0,0.0812]
[1730940640483,0.13390902,75176.0,75175.0,0.0762]
[1730940640869,0.13390902,75176.0,75169.0,0.1365]
[1730940641101,0.12499239,75173.0,75169.0,0.1365]
[1730940641343,0.12499239,75173.0,75172.0,0.005]
[1730940642032,1.62499239,75173.0,75172.0,0.005]
[1730940642667,1.62499239,75173.0,75169.0,0.1265]
[1730940642879,1.62499239,75173.0,75172.0,0.005]
[1730940643087,1.62499239,75173.0,75169.0,0.1315]
[1730940643914,1.62499239,75173.0,75171.0,0.005]
[1730940644978,1.62499239,75173.0,75172.0,0.005]
[1730940644979,0.12499239,75173.0,75172.0,0.005]
[1730940645188,0.12499239,75173.0,75169.0,0.1315]
[1730940645370,0.13224102,75172.0,75169.0,0.0778]
[1730940645660,1.63224102,75172.0,75169.0,0.0778]
[1730940646316,0.13224102,75172.0,75169.0,0.0778]
[1730940646532,0.001668,75173.0,75169.0,0.0778]
[1730940646747,0.13390902,75173.0,75172.0,0.005]
[1730940652571,0.25890141,75173.0,75172.0,0.005]
[1730940655769,0.25890141,75173.0,75169.0,0.0778]
[1730940655996,0.13224102,75172.0,75169.0,0.0778]
[1730940656215,0.12666039,75173.0,75172.0,0.005]
[1730940656216,0.13390902,75173.0,75172.0,0.005]
[1730940656700,1.63390902,75173.0,75172.0,0.005]
[1730940657394,0.13390902,75173.0,75172.0,0.005]
[1730940659344,0.26615179,75173.0,75118.0,0.4748]
[1730940659574,0.015,75120.0,75119.0,0.04918349]
[1730940659786,0.015,75120.0,75107.0,0.00158]
[1730940659787,0.01,75110.0,75107.0,0.00158]
[1730940659999,0.16799239,75110.0,75107.0,0.00158]
[1730940660243,0.26799239,75110.0,75107.0,0.00158]
[1730940660457,0.26299239,75110.0,75107.0,0.00158]
[1730940660664,0.30224856,75110.0,75107.0,0.00158]
[1730940660888,0.3022474,75110.0,75107.0,0.00158]
[1730940661102,0.26299239,75110.0,75107.0,0.00158]
[1730940661313,0.36723341,75110.0,75107.0,0.00158]
[1730940661521,0.42948852,75110.0,75107.0,0.00158]
[1730940661719,0.48406636,75110.0,75107.0,0.00158]
[1730940662251,0.30449613,75110.0,75107.0,0.00158]
[1730940662494,0.14224102,75110.0,75107.0,0.00658]
[1730940662730,0.01,75110.0,75108.0,0.005]
[1730940662954,0.01,75110.0,75109.0,0.30846074]
[1730940663189,0.01,75110.0,75109.0,0.31261937]
[1730940663627,0.005,75114.0,75112.0,0.005]
[1730940663847,0.005,75116.0,75115.0,0.005]
[1730940664063,0.80316422,75116.0,75115.0,0.00915831]
[1730940664300,0.005,75116.0,75115.0,0.005]
[1730940664512,0.00406918,75116.0,75115.0,0.005]
[1730940664824,0.01,75120.0,75118.0,0.005]
[1730940665305,0.01,75123.0,75122.0,0.005]
[1730940665525,0.005,75123.0,75122.0,0.005]
[1730940665673,0.01,75123.0,75122.0,0.005]
[1730940669512,0.20067947,75133.0,75129.0,0.005]
[1730940669513,0.005,75130.0,75129.0,0.005]
[1730940669724,0.01,75130.0,75129.0,0.005]
[1730940670185,0.01,75130.0,75129.0,0.0832]
[1730940671110,0.005,75138.0,75137.0,0.005]
[1730940671326,0.01,75138.0,75137.0,0.005]
[1730940671558,0.014027,75138.0,75137.0,0.005]
[1730940672514,0.004027,75138.0,75137.0,0.005]
[1730940673018,0.03921085,75140.0,75139.0,0.005]
[1730940673268,0.0009887,75145.0,75144.0,0.005]
[1730940673510,0.19969247,75146.0,75144.0,0.005]
[1730940673936,0.005,75149.0,75144.0,0.005]
[1730940674165,0.005,75149.0,75145.0,0.00415634]
[1730940674388,0.005,75149.0,75146.0,0.00415634]
[1730940674619,0.005,75149.0,75144.0,0.005]
[1730940674620,0.005,75149.0,75147.0,0.00415634]
[1730940674804,0.005,75149.0,75144.0,0.005]
[1730940675090,0.005,75149.0,75145.0,0.00415615]
[1730940675307,0.005,75149.0,75144.0,0.005]
[1730940676211,0.005,75152.0,75131.0,0.10665042]
[1730940676212,0.005,75150.0,75149.0,0.005]
[1730940677376,0.005,75151.0,75149.0,0.00915608]
[1730940677616,0.01,75152.0,75151.0,0.005]
[1730940678301,0.005,75152.0,75151.0,0.005]
[1730940678531,0.01,75152.0,75151.0,0.005]
[1730940678766,0.00924852,75152.0,75151.0,0.005]
[1730940679473,0.00424852,75152.0,75151.0,0.005]
[1730940679727,0.00424852,75152.0,75151.0,0.08435592]
[1730940679978,0.00424852,75152.0,75151.0,0.08701692]
[1730940680211,0.05675,75154.0,75153.0,0.005]
[1730940680444,0.05675,75154.0,75153.0,0.01681668]
[1730940680685,0.05675,75154.0,75153.0,0.01415592]
[1730940680920,0.05665,75154.0,75153.0,0.01415592]
[1730940681397,0.06225885,75154.0,75153.0,0.02080634]
[1730940682316,0.19969247,75165.0,75164.0,0.055]
[1730940682793,0.19969247,75174.0,75168.0,0.005]
[1730940683029,0.19969247,75174.0,75164.0,0.045]
[1730940683030,0.19969247,75174.0,75172.0,0.005]
[1730940683524,0.001668,75176.0,75172.0,0.005]
[1730940683783,0.0009904,75180.0,75179.0,0.005]
[1730940684040,0.001668,75190.0,75189.0,0.007]
[1730940684271,0.19969247,75197.0,75196.0,0.23699239]
[1730940684489,0.19969247,75197.0,75196.0,0.37189267]
[1730940684709,0.19969247,75206.0,75205.0,0.01]
[1730940684933,0.19969247,75206.0,75205.0,0.0578]
[1730940685205,0.005,75218.0,75209.0,0.005]
[1730940686580,0.005,75219.0,75209.0,0.005]
[1730940687064,0.005,75219.0,75209.0,0.00765876]
[1730940687975,0.000754,75226.0,75209.0,0.52382872]
[1730940688199,0.000754,75226.0,75210.0,0.02447258]
[1730940688442,0.000754,75226.0,75211.0,0.13489929]
[1730940688657,0.000754,75226.0,75214.0,0.19969247]
[1730940688873,0.000754,75226.0,75215.0,0.13489929]
[1730940689100,0.000754,75226.0,75215.0,0.14737187]
[1730940689342,0.000753,75252.0,75225.0,0.18315636]
[1730940689609,0.000753,75252.0,75250.0,0.1305]
[1730940689835,0.000753,75252.0,75250.0,0.1405]
[1730940690059,0.000753,75252.0,75226.0,0.01247258]
[1730940690060,0.01350507,75251.0,75234.0,0.005]
[1730940690347,0.01350507,75251.0,75233.0,0.1255]
[1730940690348,0.18315636,75247.0,75233.0,0.1255]
[1730940690844,0.00977821,75246.0,75233.0,0.1255]
[1730940691119,0.00977821,75246.0,75210.0,0.002]
[1730940691120,0.19969247,75234.0,75219.0,0.0854]
[1730940691362,0.13224102,75233.0,75219.0,0.005]
[1730940691615,0.19969247,75231.0,75219.0,0.005]
[1730940691855,0.19969247,75231.0,75217.0,0.0465]
[1730940691856,0.19969247,75223.0,75217.0,0.0465]
[1730940692090,0.14005898,75230.0,75217.0,0.0465]
[1730940692319,0.19969247,75223.0,75217.0,0.0465]
[1730940692785,0.00781566,75222.0,75217.0,0.0465]
[1730940695087,0.19969247,75221.0,75219.0,0.000833]
[1730940695587,0.00781508,75220.0,75219.0,0.000833]
[1730940696280,0.00781508,75220.0,75219.0,0.01014012]
[1730940696793,0.00781508,75220.0,75219.0,0.01163385]
[1730940697725,0.00781508,75220.0,75219.0,0.01663385]
[1730940698160,0.00781508,75220.0,75219.0,0.02663385]
[1730940698633,0.00781508,75220.0,75219.0,0.03327756]
[1730940699737,0.00781508,75220.0,75219.0,0.03327571]
[1730940700637,0.00781508,75220.0,75219.0,0.02662718]
[1730940700855,0.00781508,75220.0,75219.0,0.015833]
[1730940701974,0.22750755,75221.0,75220.0,0.015]
[1730940702425,0.22750755,75221.0,75220.0,0.02164258]
[1730940702658,0.22750755,75221.0,75220.0,0.02579419]
[1730940702864,0.22750755,75221.0,75220.0,0.03310691]
[1730940705054,0.22750755,75221.0,75220.0,0.02810691]
[1730940705491,0.22750755,75221.0,75220.0,0.01579419]
[1730940705958,0.03,75221.0,75220.0,0.01579419]
[1730940706595,0.00010737,75221.0,75220.0,0.01579419]
[1730940707326,0.19969247,75232.0,75220.0,0.01579419]
[1730940707327,0.19969247,75232.0,75221.0,0.005]
[1730940707556,0.19969247,75222.0,75221.0,0.005]
[1730940707773,0.19969247,75222.0,75221.0,0.01579466]
[1730940708471,0.19969247,75222.0,75221.0,0.02352024]
[1730940709648,0.21199443,75222.0,75221.0,0.02352024]
[1730940710069,0.21199443,75222.0,75221.0,0.02767384]
[1730940710512,0.21199443,75222.0,75221.0,0.01272558]
[1730940710513,0.01230196,75222.0,75221.0,0.01272558]
[1730940711027,0.19969247,75232.0,75221.0,0.01272558]
[1730940711380,0.19969247,75222.0,75221.0,0.005]
[1730940711622,0.01229764,75231.0,75221.0,0.005]
[1730940711833,0.01229332,75222.0,75221.0,0.005]
[1730940712048,0.19969247,75224.0,75221.0,0.01164298]
[1730940712270,0.19969247,75224.0,75221.0,0.005]
[1730940712271,0.01229332,75222.0,75221.0,0.005]
[1730940712509,0.19969247,75224.0,75221.0,0.005]
[1730940712726,0.01229332,75222.0,75221.0,0.01579482]
[1730940712945,0.19969247,75224.0,75221.0,0.01164297]
[1730940713184,0.01229332,75222.0,75221.0,0.005]
[1730940713407,0.19969247,75232.0,75226.0,0.005]
[1730940713618,0.19969247,75232.0,75227.0,0.00664289]
[1730940713868,0.19969247,75232.0,75228.0,0.01079472]
[1730940714083,0.19969247,75232.0,75229.0,0.01079472]
[1730940714301,0.19969247,75232.0,75230.0,0.01079472]
[1730940714522,0.19969247,75232.0,75231.0,0.01079472]
[1730940716168,0.19969247,75232.0,75231.0,0.00664289]
[1730940716403,0.19969247,75232.0,75231.0,0.01079403]
[1730940716642,0.19969247,75242.0,75227.0,0.005]
[1730940716900,0.19960347,75234.0,75227.0,0.01]
[1730940717147,0.19969247,75242.0,75232.0,0.12476661]
[1730940717370,0.19969247,75234.0,75233.0,0.00930048]
[1730940717590,0.19969247,75242.0,75233.0,0.00664245]
[1730940717825,0.19969247,75242.0,75234.0,0.01345201]
[1730940718044,0.19969247,75242.0,75235.0,0.01079398]
[1730940718279,0.001666,75249.0,75238.0,0.12476661]
[1730940718280,0.19969247,75241.0,75238.0,0.12476661]
[1730940718498,0.19969247,75241.0,75239.0,0.01079398]
[1730940719967,0.000753,75251.0,75250.0,0.158035]
[1730940720185,0.000753,75251.0,75250.0,0.258035]
[1730940720427,0.000753,75251.0,75250.0,0.260035]
[1730940720662,0.000753,75251.0,75250.0,0.258035]
[1730940721387,0.000753,75252.0,75251.0,0.117]
[1730940721646,0.19969247,75260.0,75251.0,0.117]
[1730940721647,0.17132442,75260.0,75259.0,0.015]
[1730940721877,0.17132442,75260.0,75259.0,0.28280161]
[1730940722122,0.18003051,75260.0,75259.0,0.28280161]
[1730940722370,0.00870609,75260.0,75259.0,0.28280161]
[1730940722596,0.000754,75266.0,75265.0,0.005]
[1730940722855,0.000754,75266.0,75265.0,0.01579398]
[1730940723087,0.00950721,75266.0,75265.0,0.01579398]
[1730940723300,0.000754,75266.0,75265.0,0.01579398]
[1730940723514,0.00950721,75266.0,75265.0,0.01579398]
[1730940723753,0.000754,75266.0,75265.0,0.01579398]
[1730940723973,0.00058587,75266.0,75265.0,0.01579398]
[1730940724676,0.00058587,75266.0,75265.0,0.148035]
[1730940725111,0.00058587,75266.0,75265.0,0.33160161]
[1730940727830,0.00058587,75266.0,75265.0,0.07459398]
[1730940728063,0.00058587,75266.0,75265.0,0.07458762]
[1730940729456,0.00058587,75266.0,75265.0,0.0638]
[1730940729681,0.00058587,75266.0,75265.0,0.05958771]
[1730940729909,0.00058587,75266.0,75265.0,0.01078771]
[1730940732903,0.00058587,75266.0,75252.0,0.005]
[1730940733115,0.00058587,75266.0,75265.0,0.01078985]
[1730940735166,0.00058587,75266.0,75265.0,0.01078971]
[1730940735417,0.00058587,75266.0,75265.0,0.00414994]
[1730940736576,0.00058587,75266.0,75265.0,0.00414997]
[1730940737032,0.00058587,75266.0,75265.0,0.00829994]
[1730940737508,0.00058587,75266.0,75265.0,0.00414997]
[1730940739371,0.00058587,75266.0,75265.0,0.00414996]
[1730940740459,0.00058587,75266.0,75257.0,0.005]
[1730940740678,0.00058587,75266.0,75258.0,0.00414995]
[1730940740900,0.00058587,75266.0,75259.0,0.00414995]
[1730940741131,0.00058587,75266.0,75260.0,0.00414995]
[1730940741343,0.00058587,75266.0,75261.0,0.00414995]
[1730940741560,0.00058587,75266.0,75262.0,0.00414995]
[1730940741778,0.00058587,75266.0,75265.0,0.000832]
[1730940742697,0.13282689,75266.0,75265.0,0.000832]
[1730940742915,0.14179258,75266.0,75265.0,0.000832]
[1730940748772,0.16479258,75266.0,75265.0,0.000832]
[1730940750036,0.24559258,75266.0,75265.0,0.000832]
[1730940750522,0.76359526,75266.0,75265.0,0.000832]
[1730940750744,1.00148773,75266.0,75265.0,0.000832]
[1730940751003,0.5,75251.0,75244.0,0.00415083]
[1730940751239,0.5,75251.0,75240.0,0.19969247]
[1730940751240,0.023,75243.0,75240.0,0.19969247]
[1730940751491,0.023,75241.0,75223.0,0.0759]
[1730940751733,0.13224102,75240.0,75223.0,0.0759]
[1730940751983,0.13224102,75240.0,75224.0,0.00664276]
[1730940752245,0.13224102,75240.0,75223.0,0.0759]
[1730940752246,0.14776661,75238.0,75225.0,0.00664276]
[1730940752464,0.14776661,75238.0,75220.0,0.047633]
[1730940752465,0.023,75236.0,75226.0,0.00415172]
[1730940752765,0.13224102,75235.0,75226.0,0.00415172]
[1730940753003,0.13224102,75235.0,75220.0,0.047633]
[1730940753004,0.14113435,75235.0,75220.0,0.047633]
[1730940753246,0.14113435,75235.0,75221.0,0.0041522]
[1730940753467,0.14113435,75235.0,75222.0,0.0041522]
[1730940753721,0.14113435,75235.0,75220.0,0.047633]
[1730940753722,0.12476661,75225.0,75220.0,0.000833]
[1730940753940,0.13224102,75224.0,75220.0,0.000833]
[1730940754410,0.14098158,75224.0,75220.0,0.000833]
[1730940754866,0.023,75223.0,75220.0,0.000833]
[1730940755104,0.13224102,75222.0,75220.0,0.000833]
[1730940755336,0.14098062,75222.0,75220.0,0.000833]
[1730940758329,0.023,75221.0,75220.0,0.000833]
[1730940758542,0.15524102,75221.0,75220.0,0.000833]
[1730940758764,0.16394412,75221.0,75220.0,0.000833]
[1730940768586,0.36363659,75221.0,75220.0,0.000833]
[1730940768800,0.26394412,75221.0,75220.0,0.000833]
[1730940769018,0.40118689,75221.0,75220.0,0.000833]
[1730940769238,1.90118689,75221.0,75220.0,0.000833]
[1730940769876,1.76894412,75221.0,75220.0,0.000833]
[1730940770300,0.26394412,75221.0,75220.0,0.000833]
[1730940771799,0.26894412,75221.0,75220.0,0.000833]
[1730940775073,1.76894412,75221.0,75220.0,0.000833]
[1730940776346,2.1719468,75221.0,75220.0,0.000833]
[1730940777924,2.1719468,75221.0,75220.0,0.0049865]
[1730940778137,0.5439468,75221.0,75220.0,0.0049865]
[1730940778550,0.5439468,75221.0,75220.0,0.01163155]
[1730940779180,0.5439468,75221.0,75220.0,0.0049865]
[1730940779422,0.6439468,75221.0,75220.0,0.0049865]
[1730940779645,0.6439468,75221.0,75220.0,0.0116316]
[1730940779646,0.6669468,75221.0,75220.0,0.0116316]
[1730940779858,0.6669468,75221.0,75220.0,0.00747814]
[1730940780069,0.6669468,75221.0,75220.0,0.00498621]
[1730940780284,0.6669468,75221.0,75220.0,0.01163135]
[1730940780558,0.26394412,75221.0,75220.0,0.01163135]
[1730940780769,0.26394412,75221.0,75220.0,0.01993734]
[1730940780986,0.16394412,75221.0,75220.0,0.01993734]
[1730940781203,0.16394412,75221.0,75220.0,0.02987437]
[1730940781204,0.14094412,75221.0,75220.0,0.02987437]
[1730940782285,0.14094412,75221.0,75220.0,0.01993734]
[1730940783169,0.14094412,75221.0,75220.0,0.01163135]
[1730940783820,0.0087031,75221.0,75220.0,0.01163135]
[1730940784036,0.023,75228.0,75220.0,0.01163135]
[1730940784279,0.13224102,75227.0,75221.0,0.01079835]
[1730940784502,0.13224102,75227.0,75222.0,0.01079835]
[1730940784503,0.00913678,75227.0,75222.0,0.01079835]
[1730940784721,0.00913678,75227.0,75224.0,0.00405782]
[1730940784933,0.00913678,75227.0,75223.0,0.01079835]
[1730940784934,0.19969247,75228.0,75225.0,0.01079835]
[1730940785148,0.00916856,75226.0,75223.0,0.00405782]
[1730940785370,0.00916856,75226.0,75224.0,0.01079527]
[1730940785586,0.33193349,75228.0,75225.0,0.01079527]
[1730940785791,0.33193349,75228.0,75226.0,0.01079527]
[1730940785982,0.33193349,75228.0,75227.0,0.01079527]
[1730940786372,0.13224102,75228.0,75227.0,0.01079527]
[1730940786771,0.28000763,75228.0,75227.0,0.01079527]
[1730940787002,0.15524102,75228.0,75227.0,0.01079527]
[1730940787364,0.13224102,75228.0,75227.0,0.01079527]
[1730940791620,1.63224102,75228.0,75227.0,0.01079527]
[1730940792788,1.63224102,75228.0,75220.0,0.000833]
[1730940793012,1.63224102,75228.0,75227.0,0.00664361]
[1730940793251,1.63224102,75228.0,75227.0,0.00415225]
[1730940793460,1.63224102,75228.0,75227.0,0.00830448]
[1730940793893,1.78000763,75228.0,75227.0,0.00830448]
[1730940794120,1.79000763,75228.0,75227.0,0.00830448]
[1730940794336,1.9978531,75228.0,75227.0,0.00415225]
[1730940794549,2.06041117,75228.0,75227.0,0.00415225]
[1730940794761,0.5,75221.0,75200.0,0.0817]
[1730940794973,0.005,75222.0,75201.0,0.20633821]
[1730940794974,0.023,75206.0,75201.0,0.20633821]
[1730940795191,0.13224102,75205.0,75201.0,0.00664574]
[1730940795631,1.5,75204.0,75201.0,0.00664574]
[1730940795889,0.13224102,75203.0,75202.0,0.00664574]
[1730940796320,0.13224102,75203.0,75202.0,0.0149532]
[1730940796528,1.63224102,75203.0,75202.0,0.00664574]
[1730940798739,1.64144601,75203.0,75202.0,0.00664574]
[1730940799860,1.64144601,75203.0,75202.0,0.00664601]
[1730940800318,1.64144601,75203.0,75202.0,0.00748001]
[1730940801670,1.64144601,75203.0,75202.0,0.000834]
[1730940801886,1.66444601,75203.0,75202.0,0.000834]
[1730940804177,1.76444601,75203.0,75202.0,0.000834]
[1730940807504,1.76444601,75203.0,75202.0,0.076334]
[1730940807505,1.64144601,75203.0,75202.0,0.076334]
[1730940807922,1.64144601,75203.0,75202.0,0.08048771]
[1730940808624,1.64144601,75203.0,75202.0,0.076334]
[1730940810197,1.77368878,75203.0,75202.0,0.000834]
[1730940810433,1.66444601,75203.0,75202.0,0.000834]
[1730940810681,1.76444601,75203.0,75202.0,0.000834]
[1730940814238,1.74144601,75203.0,75202.0,0.000834]
[1730940816396,1.64144601,75203.0,75202.0,0.000834]
[1730940818306,1.64144601,75203.0,75202.0,0.00498772]
[1730940818538,1.64144601,75203.0,75202.0,0.00498765]
[1730940820660,1.64144601,75203.0,75202.0,0.08788765]
[1730940821140,1.64144601,75203.0,75202.0,0.08788753]
[1730940821373,1.50920499,75203.0,75202.0,0.08788753]
[1730940821601,1.50920499,75203.0,75202.0,0.14766544]
[1730940821602,0.00920499,75203.0,75202.0,0.14766544]
[1730940821830,0.00920499,75203.0,75202.0,0.15597169]
[1730940822077,0.03,75204.0,75202.0,0.16480786]
[1730940822319,0.03,75204.0,75203.0,0.03347386]
[1730940823694,0.03,75204.0,75203.0,0.03347201]
[1730940824794,0.03,75204.0,75203.0,0.01910366]
[1730940825023,0.03,75204.0,75203.0,0.03350238]
[1730940826201,0.03,75204.0,75202.0,0.131334]
[1730940826422,0.13224102,75203.0,75202.0,0.131334]
[1730940826860,0.14029586,75203.0,75202.0,0.131334]
[1730940827928,0.14029586,75203.0,75202.0,0.14766787]
[1730940828138,0.14029586,75203.0,75202.0,0.14517587]
[1730940828786,0.14029586,75203.0,75202.0,0.14102253]
[1730940829227,0.14029586,75203.0,75202.0,0.14766789]
[1730940830583,0.14029586,75203.0,75202.0,0.15597444]
[1730940830584,0.00805484,75203.0,75202.0,0.15597444]
[1730940831025,0.03,75204.0,75202.0,0.1648304]
[1730940831280,0.03,75204.0,75203.0,0.02464044]
[1730940831491,0.03,75204.0,75203.0,0.00415319]
[1730940831737,0.03,75204.0,75203.0,0.02463854]
[1730940831966,0.03,75204.0,75203.0,0.033494]
[1730940832181,0.03,75204.0,75203.0,0.03349456]
[1730940834692,0.03,75204.0,75203.0,0.26419493]
[1730940834910,0.19969247,75214.0,75211.0,0.005]
[1730940835159,0.19969247,75214.0,75211.0,0.03849456]
[1730940835391,0.19969247,75214.0,75211.0,0.02963735]
[1730940835392,0.01006755,75212.0,75211.0,0.02963735]
[1730940835639,0.01006755,75212.0,75211.0,0.03849056]
[1730940835873,0.01006755,75212.0,75211.0,0.0440233]
[1730940836338,0.01006755,75212.0,75211.0,0.03849064]
[1730940836572,0.00199517,75212.0,75211.0,0.17049064]
[1730940836824,0.00199517,75212.0,75211.0,0.17048691]
[1730940838458,0.00199517,75212.0,75211.0,0.17047989]
[1730940841227,0.00199517,75212.0,75211.0,0.16632343]
[1730940841468,0.00199517,75212.0,75211.0,0.16162879]
[1730940841686,0.00199517,75212.0,75211.0,0.17047561]
[1730940841936,0.00199517,75212.0,75211.0,0.16162879]
[1730940842826,0.00199517,75212.0,75211.0,0.17047561]
[1730940843727,0.00199517,75212.0,75211.0,0.16162879]
[1730940844436,0.00199517,75212.0,75211.0,0.15662879]
[1730940844625,0.00199517,75212.0,75211.0,0.02462879]
[1730940844874,0.00199517,75212.0,75211.0,0.03613447]
[1730940845334,0.00199517,75212.0,75211.0,0.03614242]
[1730940845549,0.001668,75219.0,75211.0,0.03614242]
[1730940845778,0.001668,75219.0,75212.0,0.03348356]
[1730940845987,0.001668,75219.0,75211.0,0.005]
[1730940845988,0.00813345,75218.0,75213.0,0.03348356]
[1730940846229,0.00813345,75218.0,75214.0,0.03348356]
[1730940846444,0.00813345,75218.0,75215.0,0.07353185]
[1730940846681,0.00813345,75218.0,75216.0,0.02463185]
[1730940846921,0.00813345,75218.0,75217.0,0.01632748]
[1730940848478,0.00813345,75218.0,75217.0,0.00664393]
[1730940848732,0.00813345,75218.0,75217.0,0.02463529]
[1730940848966,0.00813345,75218.0,75217.0,0.11189039]
[1730940849211,0.001668,75219.0,75218.0,0.005]
[1730940849430,0.001668,75219.0,75218.0,0.03184646]
[1730940849673,0.001668,75219.0,75218.0,0.03849039]
[1730940850348,0.001668,75219.0,75218.0,0.03349039]
[1730940851936,0.001668,75219.0,75218.0,0.01965112]
[1730940852144,0.001668,75219.0,75218.0,0.02795556]
[1730940852354,0.001668,75219.0,75218.0,0.02463429]
[1730940853049,0.001668,75219.0,75218.0,0.01632985]
[1730940853262,0.00981828,75219.0,75218.0,0.01632985]
[1730940854364,0.1420593,75219.0,75218.0,0.01632985]
[1730940854638,0.1420593,75219.0,75218.0,0.01079577]
[1730940854856,0.1420593,75219.0,75218.0,0.00415222]
[1730940855777,0.1650593,75219.0,75218.0,0.00415222]
[1730940857212,0.89551114,75219.0,75218.0,0.00415222]
[1730940857435,0.89551114,75219.0,75205.0,0.00553326]
[1730940857436,0.123,75218.0,75205.0,0.00553326]
[1730940857653,0.023,75212.0,75206.0,0.01633213]
[1730940857883,0.023,75212.0,75207.0,0.01079887]
[1730940857884,0.13224102,75211.0,75207.0,0.01079887]
[1730940858123,0.13224102,75211.0,75202.0,0.000834]
[1730940858124,0.14033088,75211.0,75208.0,0.01079887]
[1730940858358,0.14033088,75211.0,75209.0,0.00415341]
[1730940858568,0.14033088,75211.0,75210.0,0.00415341]
[1730940860348,0.16333088,75211.0,75210.0,0.00415341]
[1730940861482,0.00808986,75211.0,75210.0,0.01079884]
[1730940861693,0.00808986,75211.0,75210.0,0.01633099]
[1730940861932,0.00808986,75211.0,75210.0,0.10183666]
[1730940862169,0.03,75212.0,75210.0,0.10897495]
[1730940862412,0.03,75212.0,75211.0,0.0246366]
[1730940862652,0.03,75212.0,75211.0,0.01633099]
[1730940862887,0.03,75212.0,75211.0,0.02463664]
[1730940863326,0.03,75212.0,75211.0,0.03349089]
[1730940863567,0.03,75212.0,75211.0,0.03849089]
[1730940864954,0.03,75212.0,75211.0,0.03018325]
[1730940865164,0.03,75212.0,75211.0,0.038488]
[1730940865398,0.03,75212.0,75211.0,0.04679278]